bitfinex/quotes_ETHUSD_20250428
["timestamp","ask_amount","ask_price","bid_price","bid_amount"]
[1745882185120,0.12651714,1801.8,1801.5,9.52071345]
[1745882185430,5.54980763,1801.9,1801.5,9.52071345]
[1745882185638,0.12633054,1801.7,1801.5,9.52071345]
[1745882185833,5.54980763,1801.9,1801.5,11.32790589]
[1745882186028,0.12623511,1801.6,1801.5,11.32790589]
[1745882186351,0.12333547,1801.6,1801.5,11.32790589]
[1745882186760,5.54980763,1801.9,1801.5,11.32790589]
[1745882187057,0.12335067,1801.6,1801.5,11.32790589]
[1745882187258,5.54980763,1801.9,1801.5,11.32790589]
[1745882187460,0.12335067,1801.6,1801.5,11.32790589]
[1745882188057,5.54980763,1801.9,1801.5,11.32790589]
[1745882188260,0.12348751,1801.6,1801.5,11.32790589]
[1745882188468,5.55006587,1801.8,1801.4,3.40793689]
[1745882188619,5.67422129,1801.6,1801.3,0.8139]
[1745882188824,0.8178,1801.7,1801.0,3.97555382]
[1745882189059,0.8178,1801.7,1801.0,9.52783385]
[1745882189060,5.55142605,1801.4,1801.0,9.52783385]
[1745882189423,0.11933213,1801.3,1801.0,9.52783385]
[1745882189623,0.11933213,1801.3,1800.3,6.18805066]
[1745882189624,6.28730795,1801.3,1800.4,0.8213]
[1745882189861,5.55273807,1801.0,1800.6,0.27844727]
[1745882190063,5.55273807,1801.0,1800.6,5.83210175]
[1745882190226,0.1167602,1800.9,1800.6,5.55365448]
[1745882190729,0.1167602,1800.9,1800.7,5.55338164]
[1745882190942,5.55232566,1801.1,1800.6,5.55351273]
[1745882191147,0.92744159,1801.0,1800.5,5.96154462]
[1745882192129,0.92744159,1801.0,1800.5,5.55385762]
[1745882192965,0.92744159,1801.0,1800.5,5.55379945]
[1745882193270,0.92744159,1801.0,1800.6,8.71516804]
[1745882194542,0.92744159,1801.0,1800.6,8.71515009]
[1745882194963,6.47996244,1801.0,1800.6,8.71515009]
[1745882195376,0.92744159,1801.0,1800.6,8.71511921]
[1745882195533,0.11674159,1801.0,1800.7,5.55325904]
[1745882195735,5.55216269,1801.1,1800.7,5.55325904]
[1745882196042,0.11683283,1801.0,1800.7,5.55325904]
[1745882196442,5.66936662,1801.0,1800.6,10.14207611]
[1745882197484,0.11683283,1801.0,1800.6,10.142029]
[1745882197768,0.11683283,1801.0,1800.8,5.55303528]
[1745882198282,6.31219463,1801.2,1800.9,5.55274401]
[1745882198283,0.7602,1801.2,1800.9,5.55274401]
[1745882198981,0.7602,1801.2,1800.8,5.04606848]
[1745882199186,0.7602,1801.2,1800.8,3.16165382]
[1745882199986,0.7602,1801.2,1800.8,8.71471542]
[1745882201402,0.7602,1801.2,1800.8,5.5530616]
[1745882202394,6.31215685,1801.2,1800.8,5.5530616]
[1745882203411,0.11410286,1801.1,1800.8,5.5530616]
[1745882203712,0.11410286,1801.1,1800.8,12.81593936]
[1745882203918,0.7602,1801.2,1801.0,1.70998557]
[1745882204190,0.7602,1801.2,1801.0,7.26244858]
[1745882204521,4.783,1801.3,1801.1,5.55202947]
[1745882204655,4.783,1801.3,1801.2,1.70998557]
[1745882204853,5.55079632,1801.6,1801.2,2.43618089]
[1745882204854,5.616,1801.6,1801.2,2.43618089]
[1745882205057,5.616,1801.6,1801.4,1.70998557]
[1745882205253,4.783,1801.6,1801.4,7.261007]
[1745882205597,4.783,1801.6,1801.3,11.91429358]
[1745882205810,4.783,1801.6,1801.4,5.55122555]
[1745882206184,4.783,1801.6,1801.3,6.36297757]
[1745882206684,4.783,1801.6,1801.3,6.36295204]
[1745882206888,4.783,1801.6,1801.3,0.8116]
[1745882207110,4.783,1801.6,1801.3,6.36304186]
[1745882208531,4.783,1801.6,1801.3,11.91438745]
[1745882208739,4.783,1801.6,1801.3,7.91187082]
[1745882208880,4.783,1801.6,1801.4,5.55120705]
[1745882209078,4.783,1801.6,1801.3,7.91187639]
[1745882209579,4.783,1801.6,1801.3,7.91183459]
[1745882209805,4.783,1801.6,1801.2,9.12663311]
[1745882210022,6.3835312,1801.5,1801.1,6.3314904]
[1745882210174,6.3835312,1801.5,1801.1,5.5519904]
[1745882210523,5.55127316,1801.4,1801.0,5.55227084]
[1745882210835,6.3835312,1801.5,1801.0,5.55227084]
[1745882210993,6.3835312,1801.5,1801.0,6.18544792]
[1745882211191,6.3835312,1801.5,1801.0,6.592775]
[1745882211826,6.3835312,1801.5,1801.1,5.55215768]
[1745882212924,5.5517368,1801.3,1800.9,5.55266404]
[1745882213222,0.7682,1801.2,1800.9,5.55266404]
[1745882213440,0.7682,1801.2,1801.0,5.55245149]
[1745882213938,0.7682,1801.2,1801.0,11.10473733]
[1745882214095,0.7682,1801.2,1801.0,5.55228584]
[1745882214296,0.8009,1801.4,1801.1,5.55216256]
[1745882214494,0.8009,1801.4,1801.1,5.55195671]
[1745882216232,0.8009,1801.4,1800.9,7.0906493]
[1745882216528,0.8009,1801.4,1800.9,5.5526158]
[1745882216731,0.8009,1801.4,1801.0,5.55242543]
[1745882217225,0.8009,1801.4,1800.8,10.62617112]
[1745882217226,5.55170188,1801.3,1800.9,5.55266287]
[1745882218134,6.35237956,1801.4,1800.9,5.55266287]
[1745882218135,6.35237956,1801.4,1801.0,5.55231572]
[1745882220135,4.782,1801.3,1801.0,5.55231572]
[1745882220647,0.7947,1801.2,1800.6,3.7514]
[1745882220840,5.55236299,1801.1,1800.7,5.55329121]
[1745882221356,11.1047824,1801.1,1800.7,5.55329121]
[1745882221554,5.55265065,1801.0,1800.6,5.55344592]
[1745882221854,5.55265065,1801.0,1800.5,8.71803707]
[1745882221855,0.7947,1800.9,1800.7,5.55338694]
[1745882222067,0.7947,1800.9,1800.6,5.55349443]
[1745882222351,0.7947,1801.1,1800.8,5.55308039]
[1745882222509,0.7947,1801.1,1800.7,8.71744368]
[1745882222510,6.34687987,1801.1,1800.7,9.46868312]
[1745882222711,5.55247259,1801.0,1800.7,0.7514]
[1745882222914,6.34699641,1801.1,1800.7,6.30479417]
[1745882223559,11.89940994,1801.1,1800.7,6.30479417]
[1745882223854,6.34699641,1801.1,1800.7,5.55339417]
[1745882224555,11.94543795,1801.3,1800.7,5.55339417]
[1745882224556,12.69923795,1801.3,1800.7,4.67093732]
[1745882224738,5.55228361,1801.1,1800.7,10.22422364]
[1745882225242,5.55228361,1801.1,1800.7,15.77746593]
[1745882225408,11.58579999,1801.3,1800.9,3.16409204]
[1745882225613,11.58579999,1801.3,1801.0,5.86875992]
[1745882225807,11.58579999,1801.3,1801.0,5.55235072]
[1745882227116,11.58579999,1801.3,1800.9,8.71666792]
[1745882227345,17.13754066,1801.3,1800.9,5.55257588]
[1745882228450,22.68938265,1801.3,1800.9,5.55257588]
[1745882228647,5.55187075,1801.2,1800.8,5.55284681]
[1745882228946,17.13752941,1801.3,1800.8,5.55284681]
[1745882229138,17.13752941,1801.3,1800.9,5.55265352]
[1745882229734,11.08752942,1801.3,1800.9,5.55265352]
[1745882231546,5.55187213,1801.2,1800.8,5.55284681]
[1745882231754,5.5520097,1801.2,1800.7,6.33999002]
[1745882231954,5.55236176,1801.1,1800.7,6.33999002]
[1745882232141,6.37994827,1801.0,1800.7,0.7868]
[1745882232342,6.37994827,1801.0,1800.6,8.96064913]
[1745882232528,2.020631,1801.0,1800.5,5.55385316]
[1745882232724,0.7575,1800.8,1800.3,11.9157321]
[1745882232925,0.7575,1800.8,1800.4,5.55427406]
[1745882233434,0.7575,1800.8,1800.5,8.71807421]
[1745882233648,0.7575,1800.8,1800.5,3.16409204]
[1745882234233,0.7575,1800.8,1800.4,5.55412507]
[1745882234635,0.7575,1800.8,1800.4,11.10824386]
[1745882234955,0.7575,1800.8,1800.4,5.55411879]
[1745882235160,1.31125,1800.8,1800.3,5.55446979]
[1745882235360,6.60374999,1800.8,1800.1,6.34767656]
[1745882235561,0.7609,1800.7,1800.2,5.55491093]
[1745882235723,12.15686152,1800.8,1800.0,8.71946924]
[1745882236068,12.15686152,1800.8,1800.0,8.71941704]
[1745882236069,6.31514508,1800.5,1800.0,8.71941704]
[1745882236267,6.31514508,1800.5,1800.0,14.2747854]
[1745882236561,6.31514508,1800.5,1800.1,5.55521438]
[1745882236860,0.7609,1800.5,1800.1,5.55505772]
[1745882237056,5.5419,1800.5,1800.2,5.55492681]
[1745882237950,5.5419,1800.5,1800.1,5.55505344]
[1745882238157,11.09593872,1800.5,1800.0,9.13423269]
[1745882238458,11.09593872,1800.5,1800.0,8.71940167]
[1745882239060,5.5419,1800.5,1800.2,5.55480608]
[1745882240673,5.5419,1800.5,1800.1,5.55506865]
[1745882240850,5.5419,1800.5,1800.1,5.55504576]
[1745882241050,5.5419,1800.5,1800.0,11.7194943]
[1745882241250,5.5419,1800.5,1800.0,17.27484756]
[1745882241493,6.09609,1800.5,1800.0,17.27484756]
[1745882242092,6.09609,1800.5,1800.0,11.7194453]
[1745882242391,0.7694,1800.4,1799.8,5.55606614]
[1745882243198,0.7694,1800.4,1799.3,22.22348232]
[1745882243199,0.7541,1799.7,1798.9,0.86919662]
[1745882243347,0.7541,1799.5,1798.8,0.41435565]
[1745882243552,0.7541,1799.5,1798.9,3.16409204]
[1745882243974,4.782,1799.4,1798.9,3.16409204]
[1745882244612,5.557841,1799.3,1798.9,3.16409204]
[1745882245287,5.55849632,1799.1,1798.7,3.97479204]
[1745882245464,0.8212,1799.2,1798.7,3.97479204]
[1745882245665,5.55844539,1799.1,1798.7,3.97479204]
[1745882245879,6.37922954,1799.2,1798.7,3.97479204]
[1745882246185,6.37929641,1799.2,1798.7,4.54138161]
[1745882246391,11.93762037,1799.2,1798.7,4.54138161]
[1745882246890,5.55840339,1799.1,1798.7,4.54138161]
[1745882247087,11.11759601,1799.0,1798.5,6.93619204]
[1745882247306,11.11760675,1799.0,1798.5,6.93619204]
[1745882247503,5.55899848,1798.9,1798.5,6.93619204]
[1745882247798,6.38019848,1798.9,1798.4,3.57534764]
[1745882247998,5.55939631,1798.8,1798.4,7.05275922]
[1745882248204,6.38034871,1798.9,1798.5,3.0]
[1745882248368,5.55928516,1798.8,1798.5,3.0]
[1745882249115,6.38030346,1798.9,1798.5,3.0]
[1745882249323,5.55930182,1798.8,1798.5,3.0]
[1745882249762,5.55930182,1798.8,1798.4,4.05275922]
[1745882249959,5.56018904,1798.5,1798.4,0.4112556]
[1745882250159,5.56018904,1798.5,1797.7,5.07443706]
[1745882250160,0.55,1798.8,1797.0,0.7811]
[1745882250366,5.56256728,1797.8,1797.3,3.16409204]
[1745882250588,5.56224083,1797.9,1797.5,3.16409204]
[1745882250787,11.12514089,1797.8,1797.5,3.16409204]
[1745882251008,5.56271955,1797.7,1797.5,3.16409204]
[1745882251167,5.56253955,1797.8,1797.4,0.7811]
[1745882251361,5.56219917,1797.9,1797.4,0.7811]
[1745882251362,5.56224493,1797.9,1797.5,3.0]
[1745882251569,5.56247324,1797.8,1797.4,0.7811]
[1745882251766,5.56261928,1797.8,1797.4,0.7811]
[1745882252499,5.56250713,1797.8,1797.4,0.7811]
[1745882252924,0.7908,1798.0,1797.0,0.7807]
[1745882253073,5.56230507,1797.9,1797.4,3.16409204]
[1745882253268,5.56247252,1797.8,1797.4,4.81756721]
[1745882253586,0.7908,1798.0,1797.2,0.7807]
[1745882253905,5.56326676,1797.6,1797.2,0.7807]
[1745882254119,5.5624896,1797.8,1797.2,6.34478971]
[1745882254272,5.56271085,1797.7,1797.2,9.50888175]
[1745882254724,5.56298309,1797.6,1797.2,3.94479204]
[1745882254927,5.56298309,1797.6,1797.2,0.7807]
[1745882255235,0.7908,1798.0,1797.2,7.03440803]
[1745882255435,0.7908,1798.0,1797.2,7.03422143]
[1745882256232,0.7908,1798.0,1797.2,4.47020525]
[1745882256407,0.7908,1798.0,1797.2,1.47020525]
[1745882256608,0.7908,1798.0,1797.3,14.5]
[1745882256791,3.7908,1798.0,1797.3,14.5]
[1745882256997,0.37908,1797.9,1797.3,14.5]
[1745882257447,0.8065,1797.8,1796.6,1.1836556]
[1745882257740,4.788,1797.7,1797.0,0.7724]
[1745882257939,4.788,1797.7,1797.1,14.5]
[1745882258141,4.788,1797.7,1796.9,3.0]
[1745882258142,0.8065,1797.5,1796.9,3.0]
[1745882258293,0.8065,1797.5,1796.7,5.56550439]
[1745882258508,0.8065,1797.5,1796.7,11.13106506]
[1745882258705,5.56442646,1797.2,1796.8,20.06541222]
[1745882258909,5.5633256,1797.5,1797.1,5.56432737]
[1745882259151,10.35113834,1797.6,1797.1,6.19803491]
[1745882259351,5.56343956,1797.5,1797.1,6.19803491]
[1745882260250,0.7972,1797.4,1796.8,14.5]
[1745882260555,5.5643908,1797.2,1796.8,20.06542883]
[1745882260757,15.91685366,1797.2,1796.8,14.5]
[1745882261048,5.56461241,1797.1,1796.8,14.5]
[1745882261266,6.59978185,1797.1,1796.8,14.5]
[1745882261412,6.59997061,1797.1,1796.8,14.5]
[1745882261924,0.7972,1797.0,1796.6,0.4112556]
[1745882262238,1.03526124,1797.1,1796.6,0.4112556]
[1745882262545,11.14963632,1797.2,1796.7,20.06559254]
[1745882262744,5.56452413,1797.1,1796.7,20.06559254]
[1745882263111,5.56452413,1797.1,1796.7,14.5]
[1745882263320,5.56463689,1797.1,1796.7,20.06575538]
[1745882263726,5.5852,1797.2,1796.8,5.56542437]
[1745882263931,4.788,1797.2,1796.9,6.36595236]
[1745882264128,4.788,1797.2,1797.0,5.56463157]
[1745882264330,4.788,1797.2,1796.7,0.7705]
[1745882264533,10.35222574,1797.2,1797.0,14.5]
[1745882265452,4.788,1797.2,1797.0,14.5]
[1745882267453,4.788,1797.2,1797.1,5.56452061]
[1745882267756,4.788,1797.2,1797.0,20.06471361]
[1745882268535,4.788,1797.2,1797.0,20.06468565]
[1745882269161,4.788,1797.2,1797.0,20.0646254]
[1745882269333,4.788,1797.2,1797.1,5.56452061]
[1745882269963,4.931,1797.5,1797.3,5.56381004]
[1745882270367,4.931,1797.5,1797.2,5.56418164]
[1745882270368,1.57754362,1798.3,1797.6,1.3082]
[1745882270532,1.57754362,1798.3,1798.2,8.72520871]
[1745882270924,0.7873,1798.6,1798.2,23.22500355]
[1745882271126,0.7873,1798.6,1798.2,20.06091151]
[1745882271368,5.7183,1798.6,1798.2,20.06091151]
[1745882271567,6.29013,1798.6,1798.2,25.62180271]
[1745882271728,1.35913,1798.6,1798.2,25.62180271]
[1745882271928,4.931,1798.5,1798.2,25.62180271]
[1745882272433,4.931,1798.5,1798.2,25.62181701]
[1745882272661,4.931,1798.5,1798.3,5.56074326]
[1745882273685,4.931,1798.5,1798.4,5.56049822]
[1745882274934,4.931,1798.5,1798.3,20.0606494]
[1745882275135,4.931,1798.5,1798.4,5.56049822]
[1745882275364,4.931,1798.5,1798.3,14.5]
[1745882275531,4.931,1798.5,1798.3,20.06061714]
[1745882275735,4.931,1798.5,1798.3,20.06060358]
[1745882275972,4.931,1798.5,1798.4,5.56049822]
[1745882276476,4.931,1798.5,1798.4,11.28670044]
[1745882276778,4.929,1798.8,1798.5,5.55991189]
[1745882279045,4.929,1798.8,1798.4,5.72620222]
[1745882279246,4.929,1798.8,1798.5,5.55990358]
[1745882279447,4.929,1798.8,1798.5,5.56018904]
[1745882279690,4.929,1798.8,1798.6,20.05972839]
[1745882280474,4.929,1798.8,1798.6,20.05963648]
[1745882280676,4.929,1798.8,1798.7,5.5595708]
[1745882281762,4.929,1798.8,1798.6,20.0597779]
[1745882282104,4.929,1798.8,1798.7,5.5595708]
[1745882283086,4.929,1798.8,1798.6,20.05969429]
[1745882283291,4.929,1798.8,1798.6,14.5]
[1745882283464,10.98117547,1798.8,1798.3,5.56060151]
[1745882283779,10.98117547,1798.8,1798.2,5.56101158]
[1745882283780,6.33477603,1798.7,1798.2,5.56101158]
[1745882283961,6.33477603,1798.7,1798.2,20.06101158]
[1745882284160,6.33477603,1798.7,1798.2,20.06094032]
[1745882284490,1.9506676,1798.7,1798.3,5.56066529]
[1745882284785,7.51024802,1798.7,1798.3,5.56066529]
[1745882285190,7.51024802,1798.7,1798.2,25.62182172]
[1745882285487,7.51024802,1798.7,1798.2,20.0608814]
[1745882285860,7.51024802,1798.7,1798.3,5.56078895]
[1745882286362,7.51024802,1798.7,1798.3,5.56076041]
[1745882287690,1.9506676,1798.7,1798.4,5.56043619]
[1745882287985,4.929,1798.8,1798.7,5.5595708]
[1745882289861,4.929,1798.8,1798.6,20.05972212]
[1745882290694,4.929,1798.8,1798.7,5.5595708]
[1745882291052,4.928,1799.1,1799.0,5.55864369]
[1745882291960,4.928,1799.1,1798.9,5.55877077]
[1745882292833,4.928,1799.1,1799.0,5.55864369]
[1745882294137,4.928,1799.1,1798.9,5.55878719]
[1745882294623,4.928,1799.1,1799.0,20.05864369]
[1745882295731,4.922,1799.4,1799.2,5.55782952]
[1745882296198,4.922,1799.4,1799.3,5.55771688]
[1745882297442,0.8174,1799.1,1799.0,14.5]
[1745882298325,0.8174,1799.1,1798.8,5.55908226]
[1745882298552,10.48081953,1799.0,1798.5,8.55999146]
[1745882298847,10.48081953,1799.0,1798.6,20.05974486]
[1745882299136,10.48081953,1799.0,1798.6,25.61947098]
[1745882299342,4.922,1799.0,1798.6,25.61947098]
[1745882299500,4.922,1799.0,1798.7,5.5595024]
[1745882299931,4.922,1799.0,1798.7,20.0595024]
[1745882300784,4.922,1799.0,1798.8,5.55914776]
[1745882300964,4.922,1799.0,1798.7,20.0593715]
[1745882301271,4.922,1799.0,1798.7,20.05936387]
[1745882301471,4.922,1799.0,1798.7,25.61871827]
[1745882301675,4.922,1799.0,1798.7,20.0593544]
[1745882301970,4.922,1799.0,1798.7,20.05933003]
[1745882302186,4.922,1799.0,1798.4,5.56035047]
[1745882302187,0.7919,1798.9,1798.4,5.56035047]
[1745882302381,5.55937157,1798.8,1798.3,5.56056016]
[1745882302585,5.55969451,1798.7,1798.3,20.06056016]
[1745882302743,4.922,1798.6,1798.3,20.06056016]
[1745882303043,10.48201467,1798.6,1798.3,14.5]
[1745882303250,4.922,1798.6,1798.3,20.06074271]
[1745882303935,10.48194361,1798.6,1798.3,14.5]
[1745882304136,0.8303,1798.5,1798.3,14.5]
[1745882304337,6.39060399,1798.5,1798.1,5.56125605]
[1745882304539,6.39060399,1798.5,1798.0,3.99689204]
[1745882304739,6.39060399,1798.5,1798.1,14.5]
[1745882305097,5.56085045,1798.3,1798.1,14.5]
[1745882305389,0.8303,1798.5,1798.1,14.5]
[1745882305390,5.56063309,1798.4,1798.1,14.5]
[1745882305764,5.56063309,1798.4,1797.8,5.56225131]
[1745882305765,6.3808978,1798.2,1797.8,5.56225131]
[1745882306201,6.3808978,1798.2,1796.9,0.7517]
[1745882306202,0.8196,1798.0,1796.9,0.7517]
[1745882306359,0.8196,1798.0,1796.9,6.31660946]
[1745882306360,6.38335888,1797.4,1796.9,6.31660946]
[1745882306703,10.48598416,1797.3,1797.0,0.63166095]
[1745882306859,4.922,1797.3,1796.9,6.31683675]
[1745882307050,4.922,1797.3,1796.9,6.3166133]
[1745882307252,4.922,1797.3,1797.0,20.0648196]
[1745882307860,4.922,1797.3,1797.1,5.56431488]
[1745882308057,4.922,1797.3,1796.9,0.7517]
[1745882308504,4.922,1797.3,1797.0,14.5]
[1745882308659,4.922,1797.3,1797.1,7.01428299]
[1745882309275,4.922,1797.3,1797.1,5.56435259]
[1745882309511,4.922,1797.3,1797.2,14.5]
[1745882309798,4.922,1797.3,1797.2,20.06421099]
[1745882311374,4.922,1797.3,1797.2,14.5]
[1745882312195,4.922,1797.3,1797.1,5.56434896]
[1745882312378,4.922,1797.3,1797.2,5.56421099]
[1745882314923,4.922,1797.3,1797.2,7.5503475]
[1745882315630,4.922,1797.3,1797.2,5.56421099]
[1745882318140,4.925,1797.6,1797.5,5.56328233]
[1745882318645,0.7938,1797.8,1797.6,5.56281668]
[1745882319000,0.7938,1797.8,1797.7,5.5626634]
[1745882319400,0.7938,1797.8,1797.6,5.56276305]
[1745882320339,0.7938,1797.8,1797.7,5.5626634]
[1745882320640,4.925,1797.9,1797.7,5.5626634]
[1745882320840,5.49948,1797.9,1797.6,5.56284795]
[1745882321600,5.49948,1797.9,1797.6,5.56278678]
[1745882323233,11.06171728,1797.9,1797.3,3.0]
[1745882323437,6.36381037,1797.8,1797.4,5.56342895]
[1745882323637,0.8013,1797.8,1797.5,5.56312541]
[1745882323837,7.54997376,1797.8,1797.4,5.56356704]
[1745882324867,7.54997376,1797.8,1797.4,11.12692619]
[1745882325075,1.98759686,1797.8,1797.5,5.56325505]
[1745882326158,1.0,1797.7,1797.4,5.56335915]
[1745882326350,1.0,1797.7,1797.5,5.56326655]
[1745882326870,1.98759686,1797.8,1797.4,5.56335915]
[1745882327259,4.931,1797.7,1797.4,5.56335915]
[1745882329572,11.23107754,1797.7,1797.3,5.56377474]
[1745882329763,4.931,1797.7,1797.5,5.56317918]
[1745882329991,4.931,1797.7,1797.6,5.56297285]
[1745882330153,4.931,1797.7,1797.5,5.56306455]
[1745882330650,4.931,1797.7,1797.4,5.56348211]
[1745882330850,4.931,1797.7,1797.5,5.56321553]
[1745882331061,4.931,1797.7,1797.4,11.12686529]
[1745882331774,4.931,1797.7,1797.5,5.56327968]
[1745882332172,4.931,1797.7,1797.4,5.56337938]
[1745882332488,4.931,1797.7,1797.5,5.56324767]
[1745882333903,0.51963117,1797.6,1797.5,5.56324767]
[1745882334101,0.51963117,1797.6,1797.4,5.56337938]
[1745882334479,0.51963117,1797.6,1797.4,5.97140235]
[1745882334679,0.51963117,1797.5,1797.4,5.97140235]
[1745882335395,0.51963117,1797.5,1797.4,7.20744768]
[1745882336873,4.931,1797.6,1797.4,12.77083617]
[1745882337077,4.931,1797.6,1797.4,5.97140235]
[1745882337278,4.931,1797.6,1797.4,11.53480299]
[1745882337579,4.931,1797.6,1797.4,5.97140235]
[1745882337779,4.931,1797.6,1797.5,5.56328233]
[1745882338080,5.45165347,1797.6,1797.5,5.56328233]
[1745882338303,0.52065347,1797.6,1797.5,5.56328233]
[1745882340423,0.52065347,1797.6,1797.5,9.89522757]
[1745882340625,0.52065347,1797.6,1797.5,6.71675322]
[1745882340788,11.7487,1798.0,1797.6,5.56268574]
[1745882340989,5.6987,1798.0,1797.7,5.56245234]
[1745882341310,0.52076729,1797.9,1797.7,5.56245234]
[1745882341484,0.52076729,1797.8,1797.7,5.56245234]
[1745882341688,0.52076729,1797.8,1797.6,5.56276919]
[1745882341910,5.6987,1798.0,1797.7,5.5626634]
[1745882342218,5.56230486,1797.9,1797.4,0.40802297]
[1745882342426,6.05702426,1798.0,1797.3,0.8253]
[1745882342427,5.56290894,1797.7,1797.3,5.5638032]
[1745882342625,4.931,1797.6,1797.3,5.5638032]
[1745882342790,10.49397721,1797.6,1797.2,5.56410063]
[1745882342983,6.36563873,1797.5,1797.1,5.56431072]
[1745882343695,0.8022,1797.5,1797.2,5.56417487]
[1745882344731,0.52113024,1797.4,1797.2,5.56417487]
[1745882345030,6.08481021,1797.4,1797.0,5.56461454]
[1745882345205,0.52113024,1797.3,1797.0,5.56462427]
[1745882345704,0.52113024,1797.2,1797.0,5.56462427]
[1745882346120,0.52113024,1797.1,1797.0,5.56462427]
[1745882348297,12.41550136,1797.5,1797.1,5.56447472]
[1745882348634,0.52065913,1797.4,1797.1,5.56447472]
[1745882349141,0.52065913,1797.4,1797.0,5.56462427]
[1745882349142,0.52065913,1797.3,1797.0,5.56463919]
[1745882349337,0.52065913,1797.3,1797.0,11.12928835]
[1745882349942,0.52065913,1797.2,1797.1,5.56452061]
[1745882350505,0.52065913,1797.2,1797.0,5.56463919]
[1745882350735,0.52065913,1797.2,1797.0,11.12926541]
[1745882350934,0.52065913,1797.2,1797.0,5.56462622]
[1745882351134,5.5639407,1797.3,1796.9,6.80579435]
[1745882351434,4.932,1797.2,1796.9,5.5649712]
[1745882351843,0.52043397,1797.1,1796.9,5.5649712]
[1745882352219,4.932,1797.2,1796.9,5.5649712]
[1745882353140,5.56463481,1797.1,1796.7,9.49517772]
[1745882353345,10.49630896,1797.2,1796.8,5.56536061]
[1745882353643,0.7836,1797.1,1796.8,5.56524525]
[1745882354048,0.52017427,1797.0,1796.8,5.56524525]
[1745882354911,0.7836,1797.1,1796.8,5.56524525]
[1745882356041,0.7836,1797.1,1796.6,0.4112556]
[1745882356042,6.08488021,1797.0,1796.6,0.4112556]
[1745882356207,0.7544,1796.8,1796.6,0.4112556]
[1745882356408,5.6134,1796.8,1796.6,0.4112556]
[1745882356613,6.13331407,1796.8,1796.6,0.4112556]
[1745882357340,5.6134,1796.8,1796.6,5.97726113]
[1745882358409,5.6134,1796.8,1796.6,0.4112556]
[1745882359306,12.35767575,1796.8,1796.6,0.4112556]
[1745882359511,11.17886581,1796.8,1796.6,0.4112556]
[1745882359711,5.6134,1796.8,1796.6,0.4112556]
[1745882360513,4.859,1796.8,1796.6,5.97728482]
[1745882360933,4.859,1796.8,1796.6,0.4112556]
[1745882361717,6.34774677,1796.9,1796.6,5.97732484]
[1745882361718,4.859,1796.7,1796.6,5.97732484]
[1745882362215,4.859,1796.7,1796.6,0.4112556]
[1745882362414,4.859,1796.7,1796.6,5.97732484]
[1745882362925,4.86,1797.0,1796.8,5.56530978]
[1745882365151,4.86,1797.0,1796.8,5.56525098]
[1745882365329,4.86,1797.0,1796.9,7.28339427]
[1745882367133,0.8079,1797.3,1796.9,7.28339427]
[1745882367134,4.86,1797.3,1797.2,5.56421099]
[1745882367356,4.86,1797.3,1797.2,7.2824653]
[1745882368152,11.61267528,1797.7,1797.3,5.56363889]
[1745882368153,11.7363,1797.7,1797.3,5.56363889]
[1745882368453,0.8263,1797.9,1797.7,5.56251114]
[1745882371153,4.859,1797.9,1797.8,7.28060829]
[1745882371559,4.859,1797.9,1797.8,5.56235398]
[1745882375924,4.859,1797.9,1797.8,20.06235398]
[1745882378251,16.705,1798.1,1797.8,20.88055398]
[1745882378445,16.705,1798.1,1797.8,26.442718]
[1745882378646,16.705,1798.1,1797.8,20.06216402]
[1745882379997,22.26644707,1798.1,1797.8,20.06216402]
[1745882380838,16.705,1798.1,1797.8,20.06216402]
[1745882381039,16.705,1798.1,1797.8,14.5]
[1745882381369,16.705,1798.1,1797.8,20.06217054]
[1745882381668,5.561443,1798.1,1797.7,6.79774277]
[1745882382067,5.561443,1798.1,1797.7,12.36020913]
[1745882382365,5.561443,1798.1,1797.7,26.86020913]
[1745882382666,5.561443,1798.1,1797.8,5.56232675]
[1745882383038,10.41932061,1798.2,1797.8,5.56232675]
[1745882385668,10.41932061,1798.2,1797.8,20.06232675]
[1745882387585,5.56146335,1798.1,1797.8,20.06232675]
[1745882387788,10.41929822,1798.2,1797.8,20.06215872]
[1745882389789,4.858,1798.2,1797.9,5.56187157]
[1745882390083,4.858,1798.2,1798.0,5.56170052]
[1745882390592,4.858,1798.2,1797.9,5.56193088]
[1745882390995,4.858,1798.2,1797.9,20.06193088]
[1745882391883,10.4191251,1798.2,1797.9,20.06193088]
[1745882393198,10.4191251,1798.2,1797.9,14.5]
[1745882393901,4.858,1798.2,1797.9,14.5]
[1745882394095,4.858,1798.2,1797.9,20.06180881]
[1745882394298,4.858,1798.2,1798.0,8.07258717]
[1745882394461,4.818,1798.5,1798.2,5.56090001]
[1745882394657,4.818,1798.5,1798.3,1.71575178]
[1745882394892,4.818,1798.5,1798.3,7.27654943]
[1745882395296,4.818,1798.5,1798.4,5.56049822]
[1745882395597,4.818,1798.5,1798.4,6.28812322]
[1745882395985,4.818,1798.5,1798.4,0.727625]
[1745882396197,4.818,1798.5,1798.3,8.07173383]
[1745882396374,4.818,1798.5,1798.2,1.71575178]
[1745882396579,5.56064465,1798.4,1798.1,16.99265178]
[1745882396796,10.37833646,1798.5,1798.1,16.99265178]
[1745882397095,10.37833646,1798.5,1798.1,22.55391344]
[1745882397458,10.37833646,1798.5,1798.1,25.36546266]
[1745882397707,5.56051731,1798.4,1798.1,24.58856266]
[1745882397876,5.56051731,1798.4,1798.1,19.027301]
[1745882399200,0.7844,1798.4,1798.1,16.21575178]
[1745882399377,0.7844,1798.4,1798.1,14.5]
[1745882399578,5.56104541,1798.3,1797.9,8.05452727]
[1745882399789,5.5615006,1798.1,1797.9,1.71575178]
[1745882399970,5.56111907,1798.2,1797.9,1.71575178]
[1745882400165,6.8344,1798.4,1797.9,14.5]
[1745882400166,0.7844,1798.0,1797.9,14.5]
[1745882400397,5.56218706,1797.9,1797.5,2.54185178]
[1745882400565,5.56270744,1797.7,1797.5,0.8261]
[1745882400904,5.56223826,1797.9,1797.4,7.27921424]
[1745882401201,5.56248641,1797.8,1797.4,7.27921424]
[1745882401404,4.818,1797.7,1797.4,8.93913362]
[1745882401808,4.818,1797.7,1797.5,14.5]
[1745882402008,4.818,1797.7,1797.5,20.06324535]
[1745882402181,4.818,1797.7,1797.6,2.54885178]